bitfinex-derivatives/quotes_BTCF0:USTF0_20250626
["timestamp","ask_amount","ask_price","bid_price","bid_amount"]
[1750974314406,0.95713862,107030.0,107020.0,0.0012]
[1750974315201,0.40181445,107030.0,107020.0,0.72570167]
[1750974315402,0.03101445,107030.0,107020.0,1.18390167]
[1750974315597,0.005,107030.0,107020.0,1.18390167]
[1750974317103,0.6878871,107040.0,107030.0,0.1867992]
[1750974317297,0.6876871,107040.0,107030.0,0.61152417]
[1750974318112,0.2801899,107040.0,107030.0,0.61152417]
[1750974318417,0.2831899,107040.0,107030.0,0.61152417]
[1750974319002,0.2871899,107040.0,107030.0,0.61252417]
[1750974319208,0.6479899,107040.0,107030.0,0.066]
[1750974319415,0.7779899,107040.0,107030.0,0.066]
[1750974319813,0.7779899,107040.0,107030.0,0.24396]
[1750974321018,0.7779899,107040.0,107030.0,0.066]
[1750974321218,0.7779899,107040.0,107030.0,0.24396]
[1750974321719,0.7779899,107040.0,107030.0,0.4307592]
[1750974322018,0.7779899,107040.0,107030.0,0.24396]
[1750974323020,0.7779899,107040.0,107030.0,0.4307592]
[1750974325520,0.7779899,107040.0,107030.0,0.24396]
[1750974326425,0.7779899,107040.0,107030.0,0.4307592]
[1750974326823,0.7779899,107040.0,107030.0,0.24396]
[1750974327213,0.8038908,107040.0,107030.0,0.24396]
[1750974336526,0.8038908,107040.0,107030.0,0.4307592]
[1750974336729,0.7779899,107040.0,107030.0,0.4307592]
[1750974337532,0.7779899,107040.0,107030.0,0.79048417]
[1750974338138,0.7779899,107040.0,107030.0,0.86551035]
[1750974338528,0.4171899,107040.0,107030.0,0.86551035]
[1750974339120,0.7779899,107040.0,107030.0,0.86551035]
[1750974339321,0.4171899,107040.0,107030.0,0.86551035]
[1750974339527,0.7779899,107040.0,107030.0,0.86551035]
[1750974344235,0.4171899,107040.0,107030.0,0.86551035]
[1750974346533,0.7779899,107040.0,107030.0,0.86551035]
[1750974349331,0.4171899,107040.0,107030.0,0.86551035]
[1750974349634,0.7779899,107040.0,107030.0,0.86551035]
[1750974351535,0.4978,107040.0,107030.0,0.86551035]
[1750974351830,0.5545818,107040.0,107030.0,0.86551035]
[1750974355231,0.5545818,107040.0,107030.0,0.86564637]
[1750974357138,0.3678,107040.0,107030.0,0.86564637]
[1750974357331,0.5545818,107040.0,107030.0,0.86564637]
[1750974357733,0.1937818,107040.0,107030.0,0.86564637]
[1750974358133,0.5545818,107040.0,107030.0,0.86564637]
[1750974358343,0.007,107040.0,107030.0,0.86564637]
[1750974358537,0.1937818,107040.0,107030.0,0.86564637]
[1750974359236,0.5645818,107040.0,107030.0,0.2406]
[1750974359427,0.92444279,107040.0,107030.0,0.1758]
[1750974359732,1.18324279,107040.0,107030.0,0.1758]
[1750974360136,0.93324279,107040.0,107030.0,0.1758]
[1750974360332,0.99646099,107040.0,107010.0,1.03239851]
[1750974360640,0.9084167,107020.0,107010.0,1.01572]
[1750974360842,1.0284167,107020.0,107010.0,0.84074709]
[1750974361038,1.0305167,107020.0,107010.0,1.01534709]
[1750974361538,1.0305167,107020.0,107010.0,0.84174709]
[1750974361742,1.39037769,107020.0,107010.0,1.02858119]
[1750974362143,1.39037769,107020.0,107010.0,0.001]
[1750974362643,1.41633934,107020.0,107010.0,0.001]
[1750974362840,1.66633934,107020.0,107010.0,0.001]
[1750974363238,1.67528061,107020.0,107010.0,0.001]
[1750974363640,1.68178061,107020.0,107010.0,0.001]
[1750974364039,0.1868341,107010.0,107000.0,0.1746]
[1750974364244,1.05009509,107010.0,107000.0,0.1746]
[1750974364440,1.05009509,107010.0,107000.0,0.3614516]
[1750974365243,1.05109509,107010.0,107000.0,0.3614516]
[1750974365439,0.1868516,107000.0,106990.0,0.45270642]
[1750974365636,0.6852516,107000.0,106990.0,0.45270642]
[1750974366748,0.6852516,107000.0,106990.0,0.48390642]
[1750974367042,1.04511259,107000.0,106990.0,0.48390642]
[1750974367249,1.04511259,107000.0,106990.0,0.17341462]
[1750974367452,1.04511259,107000.0,106990.0,0.00193462]
[1750974367641,1.04611259,107000.0,106990.0,0.00293462]
[1750974368049,0.6862516,107000.0,106990.0,0.00293462]
[1750974368249,1.04611259,107000.0,106990.0,0.00293462]
[1750974369041,1.04611259,107000.0,106990.0,2e-08]
[1750974369246,1.36996298,107000.0,106990.0,2e-08]
[1750974369446,1.72982397,107000.0,106990.0,2e-08]
[1750974369648,1.11996298,107000.0,106990.0,2e-08]
[1750974369849,1.39573749,107000.0,106990.0,2e-08]
[1750974370349,1.11996298,107000.0,106990.0,2e-08]
[1750974370546,0.6786516,107000.0,106990.0,0.18686902]
[1750974370751,0.6786516,107000.0,106990.0,0.54673001]
[1750974371048,0.6786516,107000.0,106990.0,0.42466101]
[1750974371251,0.6786516,107000.0,106990.0,0.61153001]
[1750974371646,0.6786516,107000.0,106990.0,0.25166902]
[1750974372048,0.6786516,107000.0,106990.0,0.42318902]
[1750974372749,0.6786516,107000.0,106990.0,0.23632002]
[1750974373848,1.03851259,107000.0,106990.0,0.23632002]
[1750974375162,0.6786516,107000.0,106990.0,0.23632002]
[1750974375361,1.03851259,107000.0,106990.0,0.23632002]
[1750974378364,1.03851259,107000.0,106990.0,0.06480002]
[1750974378555,1.03851259,107000.0,106990.0,0.06500002]
[1750974378752,1.03851259,107000.0,106990.0,0.00020002]
[1750974379067,1.65597358,107000.0,106990.0,2e-08]
[1750974379366,0.1868865,106980.0,106970.0,0.0609]
[1750974379557,1.03754749,106980.0,106970.0,0.06015418]
[1750974379757,1.40384749,106980.0,106970.0,0.06015418]
[1750974380262,1.40594749,106980.0,106970.0,0.06015418]
[1750974380461,1.40594749,106980.0,106970.0,0.06315418]
[1750974380659,1.40594749,106980.0,106970.0,0.06715418]
[1750974380857,1.40694749,106980.0,106970.0,0.06715418]
[1750974383866,1.40484749,106980.0,106970.0,0.06715418]
[1750974384665,1.39934749,106980.0,106970.0,0.06715418]
[1750974386376,1.42491968,106980.0,106970.0,0.06715418]
[1750974394376,1.42491968,106980.0,106970.0,0.01685268]
[1750974394581,1.43321968,106980.0,106970.0,8e-08]
[1750974397576,1.43389516,106980.0,106970.0,8e-08]
[1750974397764,1.43389516,106980.0,106970.0,0.00020008]
[1750974400678,1.43179516,106980.0,106970.0,0.00020008]
[1750974400873,0.34345869,106980.0,106970.0,0.21730398]
[1750974401180,0.65435869,106980.0,106970.0,0.57784045]
[1750974401475,0.65435869,106980.0,106970.0,0.21730398]
[1750974402671,1.01489516,106980.0,106970.0,0.03040008]
[1750974403175,1.08079516,106980.0,106970.0,0.03040008]
[1750974405877,1.05039516,106980.0,106970.0,0.03040008]
[1750974406275,1.01489516,106980.0,106970.0,0.03040008]
[1750974406478,0.65435869,106980.0,106970.0,0.03040008]
[1750974406673,0.65435869,106980.0,106970.0,0.38582398]
[1750974406977,0.65435869,106980.0,106970.0,0.74636045]
[1750974407581,0.65435869,106980.0,106970.0,0.38582398]
[1750974409376,0.65435869,106980.0,106970.0,0.74636045]
[1750974411984,0.29355869,106980.0,106970.0,0.74636045]
[1750974412181,0.65435869,106980.0,106970.0,0.74636045]
[1750974412386,0.6287865,106980.0,106970.0,0.74636045]
[1750974421692,0.6287865,106980.0,106970.0,0.74618959]
[1750974425190,0.2679865,106980.0,106970.0,0.74618959]
[1750974427398,0.6287865,106980.0,106970.0,0.74618959]
[1750974427597,0.2679865,106980.0,106970.0,0.74618959]
[1750974435495,0.6287865,106980.0,106970.0,0.74618959]
[1750974435899,0.2679865,106980.0,106970.0,0.74618959]
[1750974442216,0.2679865,106980.0,106970.0,0.38582398]
[1750974442515,0.2679865,106980.0,106970.0,0.74618959]
[1750974442916,0.2679865,106980.0,106970.0,0.16608008]
[1750974443119,0.3622865,106980.0,106970.0,0.35298398]
[1750974445122,0.3622865,106980.0,106970.0,0.18710398]
[1750974445422,0.3622865,106980.0,106970.0,0.35298398]
[1750974448125,0.3622865,106980.0,106970.0,0.41618398]
[1750974448724,0.3299865,106980.0,106970.0,0.41618398]
[1750974448927,0.2992865,106980.0,106970.0,0.41618398]
[1750974449128,0.2992865,106980.0,106970.0,0.44838398]
[1750974452220,0.2679865,106980.0,106970.0,0.44838398]
[1750974452726,0.2679865,106980.0,106970.0,0.80875681]
[1750974453128,0.2679865,106980.0,106970.0,0.44838398]
[1750974454722,0.6287865,106980.0,106970.0,0.44838398]
[1750974459435,0.6277865,106980.0,106970.0,0.4483839]
[1750974461337,0.2669865,106980.0,106970.0,0.4483839]
[1750974461540,0.6277865,106980.0,106970.0,0.4483839]
[1750974463039,0.2669865,106980.0,106970.0,0.4483839]
[1750974463240,0.6277865,106980.0,106970.0,0.4483839]
[1750974465336,0.6277865,106980.0,106970.0,0.80875673]
[1750974465537,0.6287865,106980.0,106970.0,0.81075673]
[1750974469347,0.2679865,106980.0,106970.0,0.81075673]
[1750974469643,0.6287865,106980.0,106970.0,0.81075673]
[1750974471145,0.6287865,106980.0,106970.0,0.4503839]
[1750974472241,0.8990603,106980.0,106970.0,0.7206577]
[1750974474347,0.6287865,106980.0,106970.0,0.7206577]
[1750974474652,0.8990603,106980.0,106970.0,0.7206577]
[1750974474843,0.6287865,106980.0,106970.0,0.7206577]
[1750974477345,0.4987865,106980.0,106970.0,0.7206577]
[1750974477952,0.1379865,106980.0,106970.0,0.7206577]
[1750974479051,0.1379865,106980.0,106970.0,1.0814577]
[1750974479357,0.1379865,106980.0,106970.0,0.7206577]
[1750974479646,0.8290603,106980.0,106970.0,0.3678738]
[1750974479853,0.8290603,106980.0,106970.0,0.4991538]
[1750974480044,0.8919603,106980.0,106970.0,0.4991538]
[1750974481952,0.8919603,106980.0,106970.0,0.6860577]
[1750974483757,0.8596603,106980.0,106970.0,0.6860577]
[1750974486159,0.8290603,106980.0,106970.0,0.6860577]
[1750974486455,0.5587865,106980.0,106970.0,0.6860577]
[1750974486651,0.4987865,106980.0,106970.0,0.6860577]
[1750974487358,0.3618,106980.0,106970.0,0.6860577]
[1750974487658,0.5486865,106980.0,106970.0,0.6860577]
[1750974488656,0.001,106980.0,106970.0,1.0468577]
[1750974489357,0.001,106980.0,106970.0,1.3171315]
[1750974489552,0.001,106980.0,106970.0,1.33436815]
[1750974489761,0.001,106980.0,106970.0,1.42776654]
[1750974492261,0.001,106980.0,106970.0,1.24742934]
[1750974495055,0.001,106980.0,106970.0,1.45283095]
[1750974499966,0.001,106980.0,106970.0,1.54622934]
[1750974501259,0.1878865,106980.0,106970.0,1.54622934]
[1750974501760,0.001,106980.0,106970.0,1.54622934]
[1750974502060,0.1878865,106980.0,106970.0,1.54622934]
[1750974502669,0.1878865,106980.0,106970.0,1.54386934]
[1750974502863,0.1878865,106980.0,106970.0,1.15167095]
[1750974503168,0.1878865,106980.0,106970.0,1.24506934]
[1750974503571,0.1878865,106980.0,106970.0,1.15167095]
[1750974503870,0.1878865,106980.0,106970.0,0.79087095]
[1750974512273,0.1878865,106980.0,106970.0,0.97106091]
[1750974514379,0.001,106980.0,106970.0,0.97106091]
[1750974518287,0.001,106980.0,106970.0,1.0644593]
[1750974519279,0.001,106980.0,106970.0,1.4252593]
[1750974519473,0.70582,106990.0,106970.0,1.4252593]
[1750974519474,0.0002,106990.0,106980.0,0.1868865]
[1750974519679,0.0002,107000.0,106990.0,0.1868691]
[1750974519885,0.92970978,107030.0,107020.0,0.1868167]
[1750974519886,1.05391598,107030.0,107020.0,0.1868167]
[1750974520072,1.09981792,107030.0,107020.0,0.63301575]
[1750974520278,0.82961774,107030.0,107020.0,0.36281557]
[1750974521182,0.82961774,107030.0,107020.0,0.37194075]
[1750974521578,0.83461774,107030.0,107020.0,0.3466567]
[1750974521788,0.84361774,107030.0,107020.0,0.3476567]
[1750974521979,0.8177158,107030.0,107020.0,0.3476567]
[1750974522379,0.8177158,107030.0,107020.0,0.3779567]
[1750974522875,0.8177158,107030.0,107020.0,0.4084567]
[1750974524487,0.8177158,107030.0,107020.0,0.41778714]
[1750974526480,0.8177158,107030.0,107020.0,0.38728714]
[1750974527191,0.7227158,107030.0,107020.0,0.38728714]
[1750974527491,0.7227158,107030.0,107020.0,0.4415567]
[1750974528989,0.7227158,107030.0,107020.0,0.4096567]
[1750974529290,0.7227158,107030.0,107020.0,0.3476167]
[1750974529588,0.7869158,107030.0,107020.0,0.3476167]
[1750974530292,0.7546158,107030.0,107020.0,0.3476167]
[1750974530591,0.7546158,107030.0,107020.0,0.4101167]
[1750974530989,0.7869158,107030.0,107020.0,0.4101167]
[1750974531395,0.7227158,107030.0,107020.0,0.77017256]
[1750974532095,0.7227158,107030.0,107020.0,0.4101167]
[1750974532484,0.4670417,107020.0,106990.0,1.21853897]
[1750974532689,0.5476516,107000.0,106990.0,1.01728311]
[1750974532996,1.02770746,107000.0,106990.0,0.1588]
[1750974533292,1.08950746,107000.0,106990.0,0.1588]
[1750974533689,1.08950746,107000.0,106990.0,0.1598]
[1750974533995,1.09250746,107000.0,106990.0,0.002]
[1750974534498,1.09350746,107000.0,106990.0,0.001]
[1750974534888,0.186869,106990.0,106980.0,0.5335199]
[1750974535090,0.306869,106990.0,106980.0,0.53277408]
[1750974535294,0.667669,106990.0,106980.0,0.53277408]
[1750974536802,0.672669,106990.0,106980.0,0.53377408]
[1750974536991,0.672669,106990.0,106980.0,0.53497408]
[1750974537198,0.675669,106990.0,106980.0,0.53497408]
[1750974537704,0.675669,106990.0,106980.0,0.48825298]
[1750974544605,0.675669,106990.0,106980.0,0.84830884]
[1750974545406,0.675669,106990.0,106980.0,0.68950884]
[1750974545602,0.675669,106990.0,106980.0,0.84834884]
[1750974551010,0.314869,106990.0,106980.0,0.84834884]
[1750974554407,0.314869,106990.0,106980.0,1.0287269]
[1750974562913,0.5945833,107000.0,106990.0,0.186869]
[1750974563106,0.3608,107000.0,106990.0,0.77746911]
[1750974563922,0.3678,107000.0,106990.0,0.77846911]
[1750974564513,0.007,107000.0,106990.0,1.13926911]
[1750974564713,0.011,107000.0,106990.0,1.14026911]
[1750974565017,0.007,107000.0,106990.0,1.14026911]
[1750974565411,0.004,107000.0,106990.0,1.13926911]
[1750974565616,0.004,107000.0,106990.0,1.43806911]
[1750974565921,0.004,107000.0,106990.0,2.54964607]
[1750974566216,0.004,107000.0,106990.0,2.49155537]
[1750974569923,0.004,107000.0,106990.0,2.58495376]
[1750974570726,0.004,107000.0,106990.0,2.83495376]
[1750974571531,0.0002,107010.0,107000.0,0.1868516]
[1750974571830,0.0002,107020.0,107010.0,0.20360758]
[1750974572024,0.0012,107030.0,107020.0,0.2188167]
[1750974572226,0.001,107030.0,107020.0,0.93984679]
[1750974572430,0.0002,107040.0,107030.0,0.1867992]
[1750974572633,0.6878576,107050.0,107040.0,0.1867818]
[1750974572930,0.6876576,107050.0,107040.0,0.54701189]
[1750974573228,0.6876576,107050.0,107040.0,0.5563931]
[1750974574024,0.6926576,107050.0,107040.0,0.5573931]
[1750974574526,0.6966576,107050.0,107040.0,0.5583931]
[1750974575633,0.6966576,107050.0,107040.0,0.5916931]
[1750974575821,0.6966576,107050.0,107040.0,0.65584052]
[1750974576228,0.7277576,107050.0,107040.0,0.65584052]
[1750974577936,0.6966576,107050.0,107040.0,0.65584052]
[1750974578136,0.6499632,107050.0,107040.0,0.66518415]
[1750974578429,0.6232689,107050.0,107040.0,0.66518415]
[1750974578634,0.2624689,107050.0,107040.0,0.66518415]
[1750974579527,0.2157778,107050.0,107040.0,0.66518415]
[1750974579725,0.029,107050.0,107040.0,0.66518415]
[1750974580132,0.029,107050.0,107040.0,1.02598415]
[1750974581237,0.009,107050.0,107040.0,1.02598415]
[1750974582537,0.009,107050.0,107040.0,1.05778415]
[1750974583839,0.009,107050.0,107040.0,1.41781424]
[1750974584044,0.009,107050.0,107040.0,1.05778415]
[1750974585136,0.006,107050.0,107040.0,1.05678415]
[1750974585532,0.003,107050.0,107040.0,1.05578415]
[1750974585845,0.003,107050.0,107040.0,1.53667406]
[1750974586034,0.003,107050.0,107040.0,2.25673424]
[1750974586231,0.003,107050.0,107040.0,1.53667406]
[1750974586445,0.003,107050.0,107040.0,2.25673424]
[1750974586645,0.003,107050.0,107040.0,2.55553424]
[1750974586845,0.003,107050.0,107040.0,2.58723424]
[1750974587146,0.003,107050.0,107040.0,2.28843424]
[1750974588843,0.003,107050.0,107040.0,2.53843424]
[1750974590548,0.0012,107060.0,107050.0,0.1867643]
[1750974590849,0.001,107060.0,107050.0,1.14416857]
[1750974591750,0.005,107060.0,107050.0,1.14516857]
[1750974591947,0.008,107060.0,107050.0,1.14516857]
[1750974594053,0.006,107060.0,107050.0,1.14516857]
[1750974595446,0.006,107060.0,107050.0,1.44396857]
[1750974597051,0.002,107060.0,107050.0,1.44296857]
[1750974597246,0.0002,107070.0,107060.0,0.1867469]
[1750974597452,0.0002,107080.0,107070.0,0.1867295]
[1750974597653,0.0012,107090.0,107080.0,0.186712]
[1750974597851,0.001,107090.0,107080.0,0.90774209]
[1750974598657,0.009,107090.0,107080.0,0.90874209]
[1750974599349,0.009,107090.0,107080.0,0.548712]
[1750974599549,0.009,107090.0,107080.0,0.90874209]
[1750974601454,0.009,107090.0,107080.0,1.26877218]
[1750974601654,0.001,107090.0,107080.0,1.26777218]
[1750974601857,0.006,107090.0,107080.0,1.26877218]
[1750974602659,0.011,107090.0,107080.0,0.90974209]
[1750974603258,0.006,107090.0,107080.0,0.90874209]
[1750974603457,0.01,107090.0,107080.0,0.90874209]
[1750974603658,0.01,107090.0,107080.0,1.26877218]
[1750974605760,0.01,107090.0,107080.0,0.548712]
[1750974605960,0.01,107090.0,107080.0,1.26877218]
[1750974606354,0.008,107090.0,107080.0,0.548712]
[1750974606660,0.008,107090.0,107080.0,1.26877218]
[1750974608159,0.003,107090.0,107080.0,1.29967218]
[1750974608354,0.007,107090.0,107080.0,1.29967218]
[1750974609165,0.007,107090.0,107080.0,2.14015218]
[1750974612464,0.007,107090.0,107080.0,2.17025218]
[1750974613459,0.005,107090.0,107080.0,2.17025218]
[1750974613655,0.006,107090.0,107080.0,2.17025218]
[1750974616168,0.006,107090.0,107080.0,2.46905218]
[1750974616568,0.006,107090.0,107080.0,2.62301218]
[1750974616969,0.006,107090.0,107080.0,2.65501218]
[1750974617465,0.002,107090.0,107080.0,2.65501218]
[1750974617670,0.004,107090.0,107080.0,2.65501218]
[1750974628580,0.004,107090.0,107080.0,2.78534402]
[1750974630180,0.0002,107100.0,107090.0,0.20363518]
[1750974630476,0.3317039,107120.0,107110.0,0.1866598]
[1750974630681,0.3050433,107120.0,107110.0,0.70064989]
[1750974631584,0.3130433,107120.0,107110.0,0.70164989]
[1750974632071,0.29484368,107120.0,107110.0,0.70164989]
[1750974632477,0.28142698,107120.0,107110.0,0.70164989]
[1750974632677,0.28142698,107120.0,107110.0,0.76484989]
[1750974632879,0.28642698,107120.0,107110.0,0.76584989]
[1750974634185,0.28642698,107120.0,107110.0,0.80986575]
[1750974634383,0.09978418,107120.0,107110.0,0.80986575]
[1750974635085,0.07978418,107120.0,107110.0,0.80986575]
[1750974637586,0.07178418,107120.0,107110.0,0.80886575]
[1750974637787,0.07578418,107120.0,107110.0,0.80886575]
[1750974637980,0.07478418,107120.0,107110.0,0.80786575]
[1750974638385,0.07478418,107120.0,107110.0,0.9868492]
[1750974639188,0.04188418,107120.0,107110.0,0.9868492]
[1750974639392,0.04188418,107120.0,107110.0,1.02801456]
[1750974639580,0.00928418,107120.0,107110.0,1.02801456]
[1750974642083,0.00928418,107120.0,107110.0,1.38881456]
[1750974643190,0.00828418,107120.0,107110.0,1.38881456]
[1750974647095,0.00828418,107120.0,107110.0,1.02801456]
[1750974647295,0.00828418,107120.0,107110.0,1.38881456]
[1750974649887,0.00828418,107120.0,107110.0,2.22905456]
[1750974650096,0.00828418,107120.0,107110.0,1.86825456]
[1750974650296,0.00828418,107120.0,107110.0,2.22905456]
[1750974658513,0.00828418,107120.0,107110.0,2.49856133]
[1750974658811,0.00828418,107120.0,107110.0,2.22905456]
[1750974661709,0.00828418,107120.0,107110.0,1.69004102]
[1750974661911,0.00828418,107120.0,107110.0,2.22905456]
[1750974662817,0.00828418,107120.0,107110.0,2.07509456]
[1750974663016,0.00828418,107120.0,107110.0,2.22805456]
[1750974664618,0.00828418,107120.0,107110.0,1.68904102]
[1750974664816,0.00828418,107120.0,107110.0,2.22805456]
[1750974669421,0.00428418,107120.0,107110.0,2.22805456]
[1750974669719,0.00828418,107120.0,107110.0,2.22805456]
[1750974669920,0.00428418,107120.0,107110.0,2.22805456]
[1750974670110,0.00528418,107120.0,107110.0,2.22805456]
[1750974670923,0.00428418,107120.0,107110.0,2.22805456]
[1750974673124,0.00428418,107120.0,107110.0,2.3583864]
[1750974675614,0.00504429,107120.0,107110.0,2.3583864]
[1750974676725,0.00556836,107120.0,107110.0,2.62789317]
[1750974681320,0.00556836,107120.0,107110.0,2.92669317]
[1750974682428,0.00629332,107120.0,107110.0,2.92669317]
[1750974683330,0.00685254,107120.0,107110.0,2.92669317]
[1750974688428,0.00585254,107120.0,107110.0,2.92669317]
[1750974688634,0.00485254,107120.0,107110.0,2.92669317]
[1750974689232,0.00385254,107120.0,107110.0,2.92769317]
[1750974691033,0.00385254,107120.0,107110.0,2.79736133]
[1750974693334,0.00385254,107120.0,107110.0,1.53465456]
[1750974693535,0.00385254,107120.0,107110.0,2.52669456]
[1750974694037,0.00385254,107120.0,107110.0,2.79620133]
[1750974695036,0.00385254,107120.0,107110.0,2.64424133]
[1750974695337,0.00385254,107120.0,107110.0,2.79620133]
[1750974699438,0.00385254,107120.0,107110.0,2.77457317]
[1750974699742,0.00385254,107120.0,107110.0,2.6570264]
[1750974700646,0.00385254,107120.0,107110.0,2.52669456]
[1750974702142,0.00385254,107120.0,107110.0,2.37473456]
[1750974702446,0.01385254,107120.0,107110.0,1.92330102]
[1750974702634,0.25399484,107120.0,107110.0,1.39403286]
[1750974702842,0.28669484,107120.0,107110.0,1.66353963]
[1750974703044,0.28669484,107120.0,107110.0,1.53320779]
[1750974703637,0.64749484,107120.0,107110.0,1.53220779]
[1750974703838,0.64849484,107120.0,107110.0,1.53220779]
[1750974704040,0.65049484,107120.0,107110.0,1.38092779]
[1750974704240,0.65049484,107120.0,107110.0,1.53220779]
[1750974704445,1.17000161,107120.0,107110.0,1.19426799]
[1750974704644,1.17000161,107120.0,107110.0,1.07604122]
[1750974704841,1.17000161,107120.0,107110.0,1.33628263]
[1750974706045,1.17000161,107120.0,107110.0,1.52294243]
[1750974706242,1.43950838,107120.0,107110.0,0.84008]
[1750974706448,1.17000161,107120.0,107110.0,0.99136]
[1750974706648,1.53080161,107120.0,107110.0,0.99136]
[1750974707146,1.53080161,107120.0,107110.0,0.80464]
[1750974707849,1.26129484,107120.0,107110.0,0.80464]
[1750974708049,1.53080161,107120.0,107110.0,0.80464]
[1750974708250,1.62077983,107120.0,107110.0,0.80464]
[1750974708449,1.62077983,107120.0,107110.0,0.9912998]
[1750974708450,1.26129484,107120.0,107110.0,0.9912998]
[1750974708852,1.26129484,107120.0,107110.0,1.35078479]
[1750974709050,1.01129484,107120.0,107110.0,1.35078479]
[1750974713462,1.01129484,107120.0,107110.0,1.16412499]
[1750974714662,1.01129484,107120.0,107110.0,1.35078479]
[1750974715967,0.98929484,107120.0,107110.0,1.35078479]
[1750974716158,0.98929484,107120.0,107110.0,1.41338479]
[1750974718662,0.98929484,107120.0,107110.0,1.0538998]
[1750974718869,0.98929484,107120.0,107110.0,1.41338479]
[1750974719668,0.95659484,107120.0,107110.0,1.41338479]
[1750974720367,0.98709484,107120.0,107110.0,1.38088479]
[1750974720569,1.00909484,107120.0,107110.0,1.38088479]
[1750974721162,1.00909484,107120.0,107110.0,1.0213998]
[1750974722069,1.00909484,107120.0,107110.0,1.0513998]
[1750974722270,0.98709484,107120.0,107110.0,1.0513998]
[1750974726867,0.92509484,107120.0,107110.0,1.0513998]
[1750974728273,0.92509484,107120.0,107110.0,1.32096288]
[1750974728674,1.19465792,107120.0,107110.0,0.86474]
[1750974728871,1.19465792,107120.0,107110.0,0.0301]
[1750974729077,0.1866597,107110.0,107100.0,0.28734769]
[1750974729272,0.6279597,107110.0,107100.0,0.58731077]
[1750974729476,0.63181224,107110.0,107100.0,0.58731077]
[1750974729678,0.63181224,107110.0,107100.0,0.51268308]
[1750974729878,0.63181224,107110.0,107100.0,0.48258308]
[1750974730071,0.68471224,107110.0,107100.0,0.48258308]
[1750974730270,0.68471224,107110.0,107100.0,0.48358308]
[1750974730677,0.68471224,107110.0,107100.0,0.0627]
[1750974730873,0.95427532,107110.0,107100.0,0.21402]
[1750974731178,0.93627532,107110.0,107100.0,0.18272]
[1750974731378,0.68871224,107110.0,107100.0,0.18272]
[1750974731577,0.95827532,107110.0,107100.0,0.18272]
[1750974731780,0.95827532,107110.0,107100.0,0.18172]
[1750974731968,0.96027532,107110.0,107100.0,0.18172]
[1750974732173,1.21027532,107110.0,107100.0,0.18172]
[1750974732370,1.30028641,107110.0,107100.0,0.15132]
[1750974732970,1.32681716,107110.0,107100.0,0.15132]
[1750974733171,1.30028641,107110.0,107100.0,0.15132]
[1750974733381,1.32681382,107110.0,107100.0,0.15132]
[1750974733677,0.1866946,107090.0,107080.0,0.00093384]
[1750974733883,1.0082946,107090.0,107080.0,0.24817118]
[1750974734481,1.01214714,107090.0,107080.0,0.24817118]
[1750974735184,1.01214714,107090.0,107080.0,0.09761118]
[1750974735380,1.01214714,107090.0,107080.0,0.21491118]
[1750974735586,1.04504714,107090.0,107080.0,0.21591118]
[1750974735786,1.40462131,107090.0,107080.0,0.06531118]
[1750974736285,1.43572131,107090.0,107080.0,0.06531118]
[1750974737288,1.68572131,107090.0,107080.0,0.00131118]
[1750974737586,1.70772131,107090.0,107080.0,0.00131118]
[1750974741286,1.45772131,107090.0,107080.0,0.00131118]
[1750974742183,1.70772131,107090.0,107080.0,0.00131118]
[1750974744084,1.45772131,107090.0,107080.0,0.00131118]
[1750974744279,1.70772131,107090.0,107080.0,0.00131118]
[1750974746693,1.70772131,107090.0,107080.0,8e-08]
[1750974749188,1.45772131,107090.0,107080.0,8e-08]
[1750974752898,1.48590493,107090.0,107080.0,8e-08]
[1750974754200,0.186712,107080.0,107070.0,1.05622]
[1750974754391,1.04093871,107080.0,107070.0,1.05622]
[1750974754997,1.04093871,107080.0,107070.0,0.2159]
[1750974757198,0.68136454,107080.0,107070.0,0.2159]
[1750974757401,1.04093871,107080.0,107070.0,0.2159]
[1750974762198,1.06720288,107080.0,107070.0,0.2159]
[1750974764301,1.24728739,107080.0,107070.0,0.2159]
[1750974764891,0.88648739,107080.0,107070.0,0.2159]
[1750974765191,1.60808739,107080.0,107070.0,0.2159]
[1750974766803,1.60808739,107080.0,107070.0,0.40262]
[1750974767599,0.88648739,107080.0,107070.0,0.40262]
[1750974767803,1.60808739,107080.0,107070.0,0.40262]
[1750974772314,1.60808739,107080.0,107070.0,0.67244934]
[1750974773210,1.60808739,107080.0,107070.0,0.40262]
[1750974774410,0.1867294,107070.0,107050.0,0.0009341]
[1750974774614,0.1867643,107050.0,107040.0,0.5129793]
[1750974774814,0.94739364,107050.0,107040.0,0.50136234]
[1750974775001,0.94739364,107050.0,107040.0,0.231533]
[1750974775208,0.1867817,107040.0,107030.0,0.93370996]
[1750974775512,0.94126358,107040.0,107030.0,0.922093]
[1750974775908,0.94126358,107040.0,107030.0,0.931197]
[1750974776201,1.03143599,107040.0,107030.0,0.931197]
[1750974776415,1.03143599,107040.0,107030.0,1.072213]
[1750974777115,1.03343599,107040.0,107030.0,1.087213]
[1750974777323,1.03343599,107040.0,107030.0,1.118213]
[1750974777324,1.03543599,107040.0,107030.0,1.118213]
[1750974777623,1.03543599,107040.0,107030.0,1.148913]
[1750974777822,1.03543599,107040.0,107030.0,1.210813]
[1750974780118,1.03343599,107040.0,107030.0,0.355173]
[1750974780323,1.03143599,107040.0,107030.0,0.331173]
[1750974782023,0.67143424,107040.0,107030.0,0.331173]
[1750974782430,1.03143599,107040.0,107030.0,0.331173]
[1750974784932,0.67143424,107040.0,107030.0,0.331173]
[1750974785128,1.03143599,107040.0,107030.0,0.331173]
[1750974787632,1.39223599,107040.0,107030.0,0.331173]
[1750974788230,1.03223424,107040.0,107030.0,0.24972]
[1750974788425,1.03223424,107040.0,107030.0,0.69117475]
[1750974788937,1.03223424,107040.0,107030.0,0.87797395]
[1750974789236,0.31063424,107040.0,107030.0,0.69117475]
[1750974789432,0.12385254,107040.0,107030.0,0.87797395]
[1750974789632,0.14073424,107040.0,107030.0,1.23877395]
[1750974789936,0.09083424,107040.0,107030.0,1.23877395]
[1750974790136,0.09083424,107040.0,107030.0,1.48877395]
[1750974790437,0.1867817,107040.0,107030.0,1.58216735]
[1750974790837,0.1867817,107040.0,107030.0,1.55076735]
[1750974791240,0.1867817,107040.0,107030.0,1.30076735]
[1750974792642,0.1867817,107040.0,107030.0,1.21931435]
[1750974792939,0.1867817,107040.0,107030.0,1.30076735]
[1750974793941,0.1867817,107040.0,107030.0,1.30086735]
[1750974795442,0.3268586,107050.0,107040.0,0.1867817]
[1750974795642,0.3268586,107050.0,107040.0,0.65833645]
[1750974796645,0.3268586,107050.0,107040.0,0.66033645]
[1750974797046,0.3268586,107050.0,107040.0,0.66333645]
[1750974799148,0.3579586,107050.0,107040.0,0.66333645]